fUST/lending_fUST_20241219
["ID","MTS","AMOUNT","RATE_DAILY","PERIOD"]
[345963255,1734570632084,-1532.13046489,0.00021481,2]
[345963258,1734570632093,-300.0,0.00021488,2]
[345963260,1734570632103,-300.0,0.00021488,2]
[345963261,1734570632112,-24900.0,0.00021489,2]
[345963263,1734570632121,-847.97529347,0.00021581,2]
[345963265,1734570632130,-212.795629,0.00021609,2]
[345963267,1734570632140,-435.26761418,0.000219,2]
[345963270,1734570632150,-195.92788732,0.000219,2]
[345963271,1734570632160,-168.0,0.00022,2]
[345963274,1734570632171,-1532.13046482,0.00022079,2]
[345963275,1734570632180,-153.0,0.00022419,2]
[345963278,1734570632190,-153.0,0.00022421,2]
[345963280,1734570632199,-153.0,0.00022421,2]
[345963281,1734570632208,-1378.91575852,0.00022677,2]
[345963754,1734570638265,-153.2147063,0.00022677,2]
[345963755,1734570638275,-170.9141674,0.0002306,2]
[345963757,1734570638285,-177.221615,0.00023061,2]
[345963759,1734570638294,-180.42859143,0.00023073,2]
[345963760,1734570638303,-10372.06831889,0.0002316,2]
[345963761,1734570638314,-10662.45586872,0.0002316,2]
[345963763,1734570638326,-54328.44999768,0.0002316,2]
[345963765,1734570638336,-3876.65345692,0.0002316,2]
[345963768,1734570638347,-164851.06645864,0.0002316,10]
[345963770,1734570638358,-436.1100549,0.0002316,10]
[345963788,1734570639944,-9006.196,0.0002316,10]
[345963826,1734570651025,-20500.0,0.0002316,10]
[345963827,1734571224830,163.887468,0.00013973,2]
[345963849,1734571652117,-175.297688,0.00020687,2]
[345963850,1734571652140,-163.887468,0.00021209,2]
[345963851,1734571652161,-212.795629,0.00021561,2]
[345963852,1734571652183,-300.0,0.00021701,2]
[345963853,1734571652204,-300.0,0.00021701,2]
[345963854,1734571652225,-15904.6318575,0.00021702,2]
[345963855,1734571652247,-4.04422867,0.0002177,2]
[345963861,1734571751699,24590.27200108,0.000255,120]
[345963900,1734571832145,-173.96058795,0.00021553,10]
[345963902,1734571832154,-1356.75316268,0.0002177,2]
[345963904,1734571832172,-7715.29185065,0.0002177,2]
[345963906,1734571832181,-1075.99469597,0.00021802,2]
[345963927,1734571832369,-1895.62854124,0.00021802,2]
[345964406,1734571838111,-596.1,0.00021802,2]
[345964407,1734571838250,-940.17783729,0.00021802,2]
[345964408,1734571838260,-203.0,0.00022,2]
[345964409,1734571838269,-193.0,0.00022,2]
[345964410,1734571838279,-300.0,0.00022006,2]
[345964411,1734571838288,-300.0,0.00022007,2]
[345964412,1734571838298,-1121.95681356,0.0002201,16]
[345964413,1734571838307,-716.4233335,0.00022081,2]
[345964414,1734571838316,-496.78081747,0.00022119,2]
[345964415,1734571838329,-9154.01518533,0.00022119,2]
[345964416,1734571838339,-203.0,0.00022192,2]
[345964417,1734571838348,-203.0,0.00023014,2]
[345964418,1734571838358,-193.0,0.00023014,2]
[345964419,1734571838367,-162.38573226,0.00023073,2]
[345964420,1734571838377,-230.0,0.000231,4]
[345964421,1734571838386,-168.87557328,0.000231,2]
[345964422,1734571838395,-37681.48709265,0.0002316,2]
[345964423,1734571838406,-1938.32672846,0.0002316,2]
[345964424,1734571838415,-204.79720857,0.00023173,2]
[345964425,1734571838428,-203.11470627,0.00023173,2]
[345964426,1734571838438,-500.0,0.00023173,2]
[345964427,1734571838448,-500.0,0.00023173,2]
[345964428,1734571838457,-151.0,0.000232,6]
[345964429,1734571838466,-500.0,0.000232,2]
[345964430,1734571838476,-500.0,0.000232,2]
[345964431,1734571838485,-500.29321698,0.000232,2]
[345964432,1734571838494,-162.38573222,0.00023361,2]
[345964433,1734571838503,-1029.71037982,0.00023431,2]
[345964434,1734571838512,-3147.8,0.000235,60]
[345964435,1734571838521,-150.0,0.000236,2]
[345964436,1734571838530,-162.38573222,0.00023649,2]
[345964437,1734571838539,-341.046,0.0002368,2]
[345964438,1734571838548,-501.36073576,0.00023721,2]
[345964439,1734571838557,-1000.0,0.00023748,2]
[345964440,1734571838567,-1029.71037982,0.00023804,2]
[345964441,1734571838576,-420.0,0.00023913,2]
[345964442,1734571838586,-162.38573222,0.00023937,2]
[345964443,1734571838595,-320.556119,0.00024,2]
[345964444,1734571838604,-1537.48,0.00024109,2]
[345964445,1734571838614,-204.0,0.00024164,2]
[345964446,1734571838623,-1029.71037982,0.00024176,2]
[345964447,1734571838632,-420.0,0.00024208,2]
[345964448,1734571838641,-162.38573222,0.00024225,2]
[345964449,1734571838651,-190.538,0.00024396,2]
[345964450,1734571838660,-300.0,0.000244,11]
[345964451,1734571838669,-240.0,0.000244,7]
[345964452,1734571838687,-670.58,0.000245,2]
[345964453,1734571838696,-162.38573222,0.00024514,2]
[345964454,1734571838706,-1029.71037982,0.00024549,2]
[345964455,1734571838716,-150.0,0.000246,2]
[345964456,1734571838726,-500.0,0.00024656,2]
[345964457,1734571838735,-500.0,0.00024656,2]
[345964458,1734571838744,-500.0,0.00024656,2]
[345964459,1734571838754,-500.0,0.00024656,2]
[345964460,1734571838763,-500.0,0.00024656,2]
[345964461,1734571838772,-369.8057164,0.00024656,2]
[345964462,1734571838781,-390.07460738,0.00024656,2]
[345964463,1734571838791,-500.0,0.00024656,2]
[345964464,1734571838800,-500.0,0.00024656,2]
[345964465,1734571838809,-500.0,0.00024656,2]
[345964466,1734571838819,-500.0,0.00024656,2]
[345964467,1734571838829,-324.79548526,0.00024656,2]
[345964468,1734571838839,-500.0,0.00024656,2]
[345964469,1734571838848,-500.0,0.00024656,2]
[345964470,1734571838858,-500.0,0.00024656,2]
[345964471,1734571838867,-500.0,0.00024656,2]
[345964472,1734571838877,-500.0,0.00024656,2]
[345964473,1734571838888,-500.0,0.00024656,2]
[345964474,1734571838899,-500.0,0.00024656,2]
[345964475,1734571838908,-500.0,0.00024656,2]
[345964476,1734571838918,-500.0,0.00024656,2]
[345964477,1734571838937,-500.0,0.00024656,2]
[345964478,1734571838949,-500.0,0.00024656,2]
[345964479,1734571838959,-500.0,0.00024656,2]
[345964480,1734571838968,-500.0,0.00024656,2]
[345964481,1734571838978,-500.0,0.00024656,2]
[345964482,1734571838987,-500.0,0.00024656,2]
[345964483,1734571838996,-500.0,0.00024656,2]
[345964484,1734571839006,-500.0,0.00024656,2]
[345964485,1734571839016,-500.0,0.00024656,2]
[345964486,1734571839025,-500.0,0.00024656,2]
[345964487,1734571839034,-500.0,0.00024656,2]
[345964488,1734571839042,-500.0,0.00024656,2]
[345964489,1734571839052,-281.3514544,0.00024656,2]
[345964490,1734571839062,-500.0,0.00024656,2]
[345964491,1734571839071,-500.0,0.00024656,2]
[345964492,1734571839081,-500.0,0.00024656,2]
[345964493,1734571839090,-500.0,0.00024656,2]
[345964494,1734571839101,-500.0,0.00024656,2]
[345964495,1734571839111,-500.0,0.00024656,2]
[345964496,1734571839123,-500.0,0.00024656,2]
[345964497,1734571839132,-500.0,0.00024656,2]
[345964498,1734571839142,-500.0,0.00024656,2]
[345964499,1734571839151,-500.0,0.00024656,2]
[345964500,1734571839162,-500.0,0.00024656,2]
[345964501,1734571839177,-500.0,0.00024656,2]
[345964502,1734571839189,-500.0,0.00024656,2]
[345964503,1734571839198,-587.5568889,0.00024656,2]
[345964504,1734571839208,-500.0,0.00024656,2]
[345964505,1734571839218,-500.0,0.00024656,2]
[345964506,1734571839227,-500.0,0.00024656,2]
[345964507,1734571839237,-500.0,0.00024656,2]
[345964508,1734571839247,-500.0,0.00024656,2]
[345964509,1734571839256,-500.0,0.00024656,2]
[345964510,1734571839266,-500.0,0.00024656,2]
[345964511,1734571839275,-500.0,0.00024656,2]
[345964512,1734571839284,-500.0,0.00024656,2]
[345964513,1734571839294,-500.0,0.00024656,2]
[345964514,1734571839304,-500.0,0.00024656,2]
[345964515,1734571839313,-500.0,0.00024656,2]
[345964516,1734571839323,-500.0,0.00024656,2]
[345964517,1734571839337,-500.0,0.00024656,2]
[345964518,1734571839347,-500.0,0.00024656,2]
[345964519,1734571839357,-500.0,0.00024656,2]
[345964520,1734571839367,-500.0,0.00024656,2]
[345964521,1734571839376,-500.0,0.00024656,2]
[345964522,1734571839386,-500.0,0.00024656,2]
[345964523,1734571839395,-500.0,0.00024656,2]
[345964524,1734571839406,-500.0,0.00024656,2]
[345964525,1734571839415,-500.0,0.00024656,2]
[345964526,1734571839432,-500.0,0.00024656,2]
[345964527,1734571839441,-500.0,0.00024656,2]
[345964528,1734571839451,-305.58367998,0.00024657,6]
[345964529,1734571839461,-500.0,0.00024657,6]
[345964530,1734571839470,-500.0,0.00024657,6]
[345964531,1734571839479,-500.0,0.00024657,6]
[345964532,1734571839488,-500.0,0.00024657,6]
[345964533,1734571839497,-500.0,0.00024657,6]
[345964534,1734571839507,-500.0,0.00024657,6]
[345964535,1734571839516,-500.0,0.00024657,6]
[345964536,1734571839525,-264.11451911,0.00024657,6]
[345964537,1734571839542,-500.0,0.00024657,6]
[345964538,1734571839552,-500.0,0.00024657,6]
[345964539,1734571839563,-1142.66,0.00024657,6]
[345964540,1734571839573,-1058.12,0.00024657,6]
[345964541,1734571839583,-500.0,0.00024657,6]
[345964542,1734571839593,-222.81471302,0.00024657,6]
[345964543,1734571839603,-1094.5,0.00024657,6]
[345964544,1734571839612,-500.0,0.00024657,6]
[345964545,1734571839623,-744.72,0.00024657,6]
[345964546,1734571839632,-619.18,0.00024657,6]
[345964547,1734571839641,-789.37,0.00024657,6]
[345964548,1734571839651,-1137.9,0.00024657,2]
[345964549,1734571839661,-500.0,0.00024657,6]
[345964550,1734571839673,-500.0,0.00024657,6]
[345964551,1734571839686,-561.38,0.00024657,6]
[345964552,1734571839695,-805.94,0.00024657,6]
[345964553,1734571839704,-500.0,0.00024657,6]
[345964554,1734571839714,-500.0,0.00024657,6]
[345964555,1734571839723,-500.0,0.00024657,6]
[345964557,1734571839733,-500.0,0.00024657,6]
[345964560,1734571839743,-500.0,0.00024657,6]
[345964563,1734571839752,-500.0,0.00024657,6]
[345964566,1734571839761,-500.0,0.00024657,6]
[345964568,1734571839771,-723.61,0.00024657,6]
[345964572,1734571839781,-1034.61,0.00024657,2]
[345964574,1734571839790,-1305.9,0.00024657,2]
[345964587,1734571839946,-1851.96,0.00024657,2]
[345964588,1734571839956,-500.0,0.00024657,6]
[345964589,1734571839967,-682.84,0.00024657,6]
[345964590,1734571839977,-500.0,0.00024657,6]
[345964591,1734571839986,-662.74,0.00024657,6]
[345964592,1734571839996,-500.0,0.00024657,6]
[345964593,1734571840006,-500.0,0.00024657,6]
[345964594,1734571840015,-660.29,0.00024657,6]
[345964595,1734571840025,-500.0,0.00024657,6]
[345964596,1734571840034,-211.99468996,0.00024657,6]
[345964605,1734571840228,-252.3074118,0.00024657,6]
[345964783,1734571842187,4522.61136587,0.000255,120]
[345964786,1734571843692,-5484.171338,0.00024657,6]
[345964791,1734571843843,-2751.43935299,0.00024657,6]
[345964803,1734571846050,-23070.50720725,0.00024657,6]
[345964805,1734571846060,-500.0,0.00024657,6]
[345964806,1734571846069,-151.0,0.00024657,7]
[345964808,1734571846078,-868.79,0.00024657,6]
[345964809,1734571846089,-500.0,0.00024657,6]
[345964810,1734571846101,-2776.94,0.00024657,6]
[345964811,1734571846110,-500.0,0.00024657,6]
[345964812,1734571846119,-500.0,0.00024657,6]
[345964813,1734571846129,-500.0,0.00024657,6]
[345964814,1734571846139,-500.0,0.00024657,6]
[345964815,1734571846149,-500.0,0.00024657,2]
[345964816,1734571846159,-571.89,0.00024657,6]
[345964817,1734571846168,-500.0,0.00024657,6]
[345964818,1734571846181,-500.0,0.00024657,6]
[345964819,1734571846190,-500.0,0.00024657,6]
[345964820,1734571846200,-13642.37,0.00024657,6]
[345964821,1734571846209,-500.0,0.00024657,6]
[345964822,1734571846218,-3182.17,0.00024657,6]
[345964823,1734571846227,-500.0,0.00024657,6]
[345964824,1734571846236,-4543.38,0.00024657,6]
[345964825,1734571846245,-500.0,0.00024657,6]
[345964826,1734571846255,-151.0,0.00024657,7]
[345964827,1734571846264,-151.0,0.00024657,7]
[345964828,1734571846273,-2275.31,0.00024657,6]
[345964829,1734571846282,-500.0,0.00024657,6]
[345964830,1734571846292,-151.0,0.00024657,7]
[345964831,1734571846301,-151.0,0.00024657,7]
[345964832,1734571846310,-151.0,0.00024657,7]
[345964833,1734571846319,-151.0,0.00024657,7]
[345964834,1734571846333,-500.0,0.00024657,6]
[345964835,1734571846342,-500.0,0.00024657,6]
[345964836,1734571846352,-3458.18,0.00024657,6]
[345964837,1734571846361,-1244.04,0.00024657,6]
[345964838,1734571846371,-160.079112,0.00024657,7]
[345964839,1734571846381,-160.079112,0.00024657,7]
[345964840,1734571846390,-6845.8,0.00024657,6]
[345964841,1734571846400,-160.079112,0.00024657,7]
[345964842,1734571846411,-160.079112,0.00024657,7]
[345964843,1734571846420,-151.0,0.00024657,7]
[345964844,1734571846434,-151.0,0.00024657,7]
[345964845,1734571846443,-1152.79,0.00024657,6]
[345964846,1734571846453,-500.0,0.00024657,6]
[345964847,1734571846462,-7317.03,0.00024657,6]
[345964848,1734571846471,-500.0,0.00024657,6]
[345964849,1734571846481,-500.0,0.00024657,6]
[345964850,1734571846490,-368.03791489,0.00024657,6]
[345964851,1734571846500,-160.140733,0.00024657,7]
[345964852,1734571846509,-500.0,0.00024657,6]
[345964853,1734571846518,-500.0,0.00024657,6]
[345964854,1734571846528,-500.0,0.00024657,6]
[345964855,1734571846546,-3059.05,0.00024657,2]
[345964856,1734571846559,-500.0,0.00024657,6]
[345964857,1734571846569,-842.13,0.00024657,6]
[345964858,1734571846580,-6283.42,0.00024657,6]
[345964859,1734571846589,-500.0,0.00024657,6]
[345964860,1734571846601,-1740.02,0.00024657,6]
[345964861,1734571846611,-500.0,0.00024657,6]
[345964862,1734571846621,-584.85,0.00024657,6]
[345964863,1734571846631,-500.0,0.00024657,6]
[345964864,1734571846641,-500.0,0.00024657,6]
[345964865,1734571846650,-151.0,0.00024657,7]
[345964866,1734571846660,-151.0,0.00024657,7]
[345964867,1734571846670,-7920.06,0.00024657,6]
[345964868,1734571846684,-500.0,0.00024657,6]
[345964869,1734571846694,-1558.66,0.00024657,6]
[345964870,1734571846703,-4375.33,0.00024657,6]
[345964871,1734571846713,-500.0,0.00024657,6]
[345964872,1734571846722,-500.0,0.00024657,6]
[345964873,1734571846731,-500.0,0.00024657,6]
[345964874,1734571846741,-11222.65,0.00024657,6]
[345964875,1734571846753,-500.0,0.00024657,6]
[345964876,1734571846763,-907.91,0.00024657,6]
[345964877,1734571846772,-1190.5,0.00024657,6]
[345964878,1734571846784,-161.5808841,0.00024657,6]
[345964879,1734571846795,-500.0,0.00024657,6]
[345964880,1734571846806,-1631.17,0.00024657,6]
[345964881,1734571846816,-917.51,0.00024657,6]
[345964882,1734571846828,-3673.56,0.00024657,6]
[345964883,1734571846838,-500.0,0.00024657,6]
[345964884,1734571846847,-500.0,0.00024657,6]
[345964885,1734571846857,-3653.85,0.00024657,6]
[345964886,1734571846867,-162.33526969,0.0002466,7]
[345964887,1734571846877,-162.33526969,0.0002466,7]
[345964888,1734571846886,-162.33526969,0.0002466,7]
[345964889,1734571846896,-162.33526969,0.0002466,7]
[345964890,1734571846905,-162.33526969,0.0002466,7]
[345964891,1734571846914,-162.33526969,0.0002466,7]
[345964892,1734571846924,-162.33526969,0.0002466,7]
[345964893,1734571846937,-162.33526969,0.0002466,7]
[345964894,1734571846946,-162.33,0.0002466,7]
[345964895,1734571846956,-156.53758149,0.0002466,7]
[345964896,1734571846965,-156.53758149,0.0002466,7]
[345964897,1734571846975,-156.53758149,0.0002466,7]
[345964898,1734571846984,-156.53758149,0.0002466,7]
[345964899,1734571846993,-156.53758149,0.0002466,7]
[345964900,1734571847003,-156.53758149,0.0002466,7]
[345964901,1734571847013,-156.53758149,0.0002466,7]
[345964902,1734571847022,-156.53758149,0.0002466,7]
[345964903,1734571847032,-156.53758149,0.0002466,7]
[345964904,1734571847042,-156.53758149,0.0002466,7]
[345964905,1734571847051,-156.53758149,0.0002466,7]
[345964906,1734571847060,-156.53758149,0.0002466,7]
[345964907,1734571847070,-156.53758149,0.0002466,7]
[345964908,1734571847079,-156.53,0.0002466,7]
[345964909,1734571847090,-500.0,0.00024673,2]
[345964910,1734571847099,-474.37819365,0.00024673,2]
[345964911,1734571847109,-220.43892743,0.00024673,2]
[345964912,1734571847118,-500.0,0.00024673,2]
[345964913,1734571847127,-502.67658723,0.00024673,2]
[345964914,1734571847137,-174.47835534,0.00024673,2]
[345964915,1734571847146,-500.0,0.00024673,2]
[345964916,1734571847155,-153.0,0.00024685,2]
[345964917,1734571847165,-153.0,0.00024685,2]
[345964918,1734571847179,-495.10549143,0.0002475,2]
[345964919,1734571847188,-666.0,0.000248,2]
[345964920,1734571847198,-162.38573222,0.00024802,2]
[345964921,1734571847207,-500.0,0.00024873,2]
[345964922,1734571847217,-500.72053345,0.00024873,2]
[345964923,1734571847226,-518.7032219,0.00024873,2]
[345964924,1734571847235,-230.0,0.000249,8]
[345964925,1734571847244,-954.27796678,0.000249,30]
[345964926,1734571847281,-14265.92111574,0.000249,30]
[345964941,1734572486270,191.86,0.00025,120]
[345964942,1734572490432,163.887468,0.00013973,2]
[345964943,1734572494545,1814.0,0.000255,120]
[345964948,1734572585294,15013.229,0.000255,120]
[345964950,1734572837117,-340.626477,0.00021956,2]
[345964951,1734572837139,-250.0,0.0002212,2]
[345964952,1734572837161,-163.887468,0.00022174,2]
[345964953,1734572837186,-300.0,0.00022228,2]
[345964954,1734572837208,-300.0,0.00022228,2]
[345964955,1734572837231,-9159.34434028,0.00022229,2]
[345965034,1734573032591,-300.0,0.00022228,2]
[345965037,1734573032602,-300.0,0.00022228,2]
[345965039,1734573032612,-568.20647614,0.00022229,2]
[345966537,1734573821939,163.887468,0.00013973,2]
[345966540,1734574166115,-420.37123539,0.00021406,2]
[345966577,1734574236941,-300.0,0.00021746,2]
[345966579,1734574236951,-3582.77848604,0.00021747,2]
[345966580,1734574236963,-2943.94131848,0.00021747,2]
[345966581,1734574236975,-8842.98640398,0.00021747,2]
[345966582,1734574236984,-2003.35236767,0.00022,2]
[345966583,1734574236994,-170.313238,0.00022101,2]
[345966584,1734574237004,-300.0,0.00022173,2]
[345966585,1734574237015,-7453.63164404,0.00022174,2]
[345966586,1734574237031,-238.5753081,0.00022303,2]
[345966587,1734574237049,-7453.63164404,0.00022591,2]
[345966588,1734574237058,-7453.63164405,0.00022957,2]
[345966589,1734574237068,-221.58340233,0.00023,3]
[345966590,1734574237078,-162.5302165,0.00023064,2]
[345966591,1734574237089,-706.36252958,0.0002315,2]
[345966592,1734574237103,-24.25439794,0.0002315,2]
[345966593,1734574237113,-500.0,0.0002315,2]
[345966594,1734574237123,-374.42285738,0.0002315,2]
[345966595,1734574237134,-500.0,0.0002315,2]
[345966596,1734574237143,-500.0,0.0002315,2]
[345966597,1734574237154,-500.0,0.0002315,2]
[345966598,1734574237163,-307.58641867,0.0002315,2]
[345966599,1734574237175,-192.41358133,0.0002315,2]
[345966600,1734574237186,-500.0,0.0002315,2]
[345966601,1734574237199,-500.0,0.0002315,2]
[345966602,1734574237208,-500.0,0.0002315,2]
[345966603,1734574237218,-500.0,0.0002315,2]
[345966604,1734574237228,-328.13514544,0.0002315,2]
[345966605,1734574237238,-500.0,0.0002315,2]
[345966606,1734574237248,-500.0,0.0002315,2]
[345966607,1734574237257,-558.75568889,0.0002315,2]
[345966608,1734574237267,-500.0,0.0002315,2]
[345966609,1734574237278,-5421.11326434,0.00023151,10]
[345966610,1734574237290,-1192.6239074,0.00023151,10]
[345966680,1734574238751,-839.99999992,0.00023151,10]
[345966682,1734574238763,-2002.37710959,0.00023151,10]
[345966684,1734574238775,-11253.28464871,0.00023151,10]
[345966686,1734574238786,-360.0,0.00023151,10]
[345966689,1734574238798,-614.13315602,0.00023151,10]
[345966690,1734574238809,-2576.28601813,0.00023151,10]
[345966691,1734574238821,-498.375,0.00023151,10]
[345966692,1734574238832,-18026.99999998,0.00023151,10]
[345966693,1734574238843,-14200.0,0.00023151,10]
[345966862,1734574240626,-1799.0,0.00023151,10]
[345966864,1734574240638,-209613.29401238,0.00023151,10]
[345966867,1734574240649,-1112.42356026,0.00023151,10]
[345967195,1734574243569,-199.0,0.00023,2]
[345967197,1734574243581,-521.0,0.00023151,10]
[345967478,1734574246575,-54349.200095,0.00023151,10]
[345967480,1734574246587,-3004.5,0.00023151,10]
[345967483,1734574246602,-4240.87851367,0.00023151,10]
[345968530,1734574896562,915.0,0.00016162,2]
[345968533,1734575151051,163.887468,0.00013973,2]
[345968535,1734575191115,-1934.93121197,0.0002175,2]
[345968536,1734575191137,-4247.21511554,0.00021869,2]
[345968537,1734575191160,-170.342566,0.00021969,2]
[345968538,1734575191182,-448.860168,0.000228,2]
[345968539,1734575191206,-300.0,0.00022965,2]
[345968540,1734575191230,-300.0,0.00022965,2]
[345968541,1734575191253,-205.63247514,0.00022966,2]
[345968542,1734575191277,-314.23723838,0.00023065,2]
[345968543,1734575191300,-450.97285432,0.00023065,2]
[345968544,1734575191326,-3212.41258465,0.00023066,2]
[345968545,1734575226086,-300.0,0.00023065,2]
[345968546,1734575226113,-300.0,0.00023065,2]
[345968547,1734575226137,-1784.82380675,0.00023066,2]
[345968664,1734575438236,-746.8125,0.00022,2]
[345968665,1734575438249,-606.84252089,0.00022,2]
[345968666,1734575438263,-147.46868467,0.00022,2]
[345968667,1734575438274,-818.58212403,0.00022,3]
[345968668,1734575438283,-27.4391913,0.00022085,2]
[345968685,1734575438471,-206.4663052,0.00022085,2]
[345968686,1734575438481,-1540.63164449,0.00022966,2]
[345968687,1734575438491,-300.0,0.00023064,2]
[345968688,1734575438501,-300.0,0.00023064,2]
[345968690,1734575438510,-13091.3780871,0.00023065,7]
[345968692,1734575438520,-5315.20887614,0.00023066,2]
[345968694,1734575438530,-149304.51613547,0.00023066,2]
[345968696,1734575438539,-27941.7989516,0.00023066,10]
[345968698,1734575438551,-1195.5490695,0.00023066,10]
[345968732,1734575438912,-2359.70803364,0.00023066,10]
[345968734,1734575438926,-17769.99999997,0.00023066,10]
[345968736,1734575438939,-14849.99999999,0.00023066,10]
[345968739,1734575438951,-2327.10167064,0.00023066,10]
[345968907,1734575440861,-744.0,0.00023066,10]
[345968909,1734575440874,-24779.25000001,0.00023066,10]
[345968911,1734575440885,-395.73803465,0.00023066,10]
[345968914,1734575440897,-988.48,0.00023066,10]
[345968916,1734575440908,-1475.41740592,0.00023066,10]
[345969224,1734575443885,-909.96440975,0.00023066,10]
[345969227,1734575443896,-1244.25,0.00023066,10]
[345969229,1734575443908,-815.0,0.00023066,10]
[345969231,1734575443919,-1050.0,0.00023066,10]
[345969252,1734575444110,-299.886,0.00023066,10]
[345969266,1734575444206,-1287.178246,0.00023066,10]
[345969568,1734575446796,-172.0,0.00022,2]
[345969570,1734575446806,-99347.80801025,0.00023066,10]
[345969572,1734575446818,-6894.6259229,0.00023066,10]
[345969594,1734575447023,-172.0,0.00023014,2]
[345969596,1734575447032,-4799.05,0.00023066,10]
[345969598,1734575447044,-7660.398957,0.00023066,10]
[345969600,1734575447056,-13337.9998,0.00023066,10]
[345969602,1734575447071,-5100.0,0.00023066,10]
[345971332,1734575887741,5538.3378051,0.000255,120]
[345971334,1734576017089,163.887468,0.00013973,2]
[345971335,1734576431131,-238.48238067,0.00021681,2]
[345971360,1734576633404,-1010.5362109,0.00021681,2]
[345971361,1734576633416,-2197.29741298,0.00021681,2]
[345971639,1734576641198,-173.046545,0.00021367,2]
[345971642,1734576641210,-4972.20726195,0.00021681,2]
[345971644,1734576641220,-399.806,0.0002199,2]
[345971645,1734576641231,-160.900138,0.00022065,2]
[345971648,1734576641241,-160.900138,0.00022102,2]
[345971650,1734576641252,-300.0,0.00022111,2]
[345971652,1734576641262,-300.0,0.00022111,2]
[345971654,1734576641272,-9059.19068514,0.00022112,4]
[345971656,1734576641284,-160.900138,0.00022139,2]
[345971658,1734576641298,-160.900138,0.00022176,2]
[345971660,1734576641308,-153.0,0.000226,2]
[345971662,1734576641319,-1622.21910408,0.000228,2]
[345971664,1734576641330,-2236.32765183,0.000229,2]
[345972154,1734576647089,-156.0,0.00022,2]
[345972156,1734576647099,-25636.88146381,0.000229,2]
[345972158,1734576647110,-153.0,0.000229,2]
[345972161,1734576647121,-182.86245964,0.000229,2]
[345972163,1734576647131,-678.4751499,0.00022918,2]
[345972166,1734576647141,-49690.271783,0.00023,2]
[345972169,1734576647150,-1852.77011259,0.00023,2]
[345972172,1734576647160,-156.0,0.00023014,2]
[345972175,1734576647169,-500.0,0.00023065,2]
[345972178,1734576647179,-500.0,0.00023065,2]
[345972181,1734576647188,-500.0,0.00023065,2]
[345972183,1734576647198,-500.0,0.00023065,2]
[345972184,1734576647207,-500.0,0.00023065,2]
[345972187,1734576647216,-500.0,0.00023065,2]
[345972189,1734576647226,-500.0,0.00023065,2]
[345972191,1734576647235,-500.0,0.00023065,2]
[345972193,1734576647245,-500.0,0.00023065,2]
[345972195,1734576647254,-500.0,0.00023065,2]
[345972197,1734576647264,-500.0,0.00023065,2]
[345972199,1734576647273,-500.0,0.00023065,2]
[345972201,1734576647283,-500.0,0.00023065,2]
[345972203,1734576647294,-500.0,0.00023065,2]
[345972205,1734576647303,-500.0,0.00023065,2]
[345972207,1734576647314,-500.0,0.00023065,2]
[345972209,1734576647323,-500.0,0.00023065,2]
[345972211,1734576647332,-500.0,0.00023065,2]
[345972213,1734576647342,-500.0,0.00023065,2]
[345972215,1734576647352,-500.0,0.00023065,2]
[345972217,1734576647361,-500.0,0.00023065,2]
[345972219,1734576647371,-500.0,0.00023065,2]
[345972221,1734576647381,-500.0,0.00023065,2]
[345972223,1734576647391,-500.0,0.00023065,2]